[Event "*** SCC Grand Prix: Titled Tuesday Blitz"]
[Site "Chess.com"]
[Date "2020.06.02"]
[Round "1"]
[White "pooh2012"]
[Black "rpragchess"]
[Result "0-1"]
[WhiteElo "2428"]
[BlackElo "2876"]
[TimeControl "180+1"]
[EndTime "10:06:07 PDT"]
[Termination "rpragchess won by resignation"]

1. Nf3 {[%clk 0:03:00.3]} 1... Nf6 {[%clk 0:02:58]} 2. g3 {[%clk 0:02:59.6]}
2... b6 {[%clk 0:02:51.2]} 3. Bg2 {[%clk 0:02:55.2]} 3... Bb7 {[%clk 0:02:51.2]}
4. d3 {[%clk 0:02:55.8]} 4... c5 {[%clk 0:02:44.8]} 5. e4 {[%clk 0:02:53.8]}
5... d6 {[%clk 0:02:44.3]} 6. O-O {[%clk 0:02:47.7]} 6... g6 {[%clk 0:02:44.1]}
7. a4 {[%clk 0:02:45.3]} 7... Bg7 {[%clk 0:02:38.6]} 8. c3 {[%clk 0:02:25]} 8...
O-O {[%clk 0:02:34.5]} 9. Nh4 {[%clk 0:02:15.9]} 9... Qc7 {[%clk 0:02:27.3]} 10.
f4 {[%clk 0:02:02.8]} 10... Nbd7 {[%clk 0:02:24.8]} 11. Nd2 {[%clk 0:01:55.5]}
11... e5 {[%clk 0:01:59.8]} 12. c4 {[%clk 0:01:28.7]} 12... exf4 {[%clk
0:01:40.2]} 13. gxf4 {[%clk 0:01:16.5]} 13... a6 {[%clk 0:01:40.2]} 14. Ra2
{[%clk 0:00:59.3]} 14... b5 {[%clk 0:01:35.3]} 15. b3 {[%clk 0:00:55.6]} 15...
Bc6 {[%clk 0:01:26.2]} 16. Bb2 {[%clk 0:00:47.3]} 16... bxa4 {[%clk 0:01:25.9]}
17. bxa4 {[%clk 0:00:39.9]} 17... Rab8 {[%clk 0:01:25.6]} 18. Bc3 {[%clk
0:00:36.6]} 18... Rfe8 {[%clk 0:01:24.6]} 19. Qa1 {[%clk 0:00:33.3]} 19... Qd8
{[%clk 0:01:17.5]} 20. e5 {[%clk 0:00:22.9]} 20... Bxg2 {[%clk 0:01:13.1]} 21.
exf6 {[%clk 0:00:20.6]} 21... Bxf1 {[%clk 0:01:09.3]} 22. fxg7 {[%clk
0:00:20.7]} 22... Qxh4 {[%clk 0:01:06.5]} 23. Nxf1 {[%clk 0:00:20.7]} 23... Qxf4
{[%clk 0:00:58.8]} 24. Rf2 {[%clk 0:00:20.6]} 24... Qg4+ {[%clk 0:00:58.1]} 25.
Rg2 {[%clk 0:00:20.9]} 25... Qf5 {[%clk 0:00:58.1]} 26. Qd1 {[%clk 0:00:19.5]}
26... Ne5 {[%clk 0:00:54.8]} 27. Rf2 {[%clk 0:00:18.1]} 27... Qg4+ {[%clk
0:00:54.1]} 28. Qxg4 {[%clk 0:00:17.4]} 28... Nxg4 {[%clk 0:00:55]} 0-1

[Event "*** SCC Grand Prix: Titled Tuesday Blitz"]
[Site "Chess.com"]
[Date "2020.06.02"]
[Round "1"]
[White "Andreikka"]
[Black "zmeeed67"]
[Result "1-0"]
[WhiteElo "2924"]
[BlackElo "2438"]
[TimeControl "180+1"]
[EndTime "10:06:08 PDT"]
[Termination "Andreikka won on time"]

1. c4 {[%clk 0:02:59]} 1... e6 {[%clk 0:02:59.4]} 2. Nc3 {[%clk 0:02:57.7]} 2...
d5 {[%clk 0:03:00.3]} 3. d4 {[%clk 0:02:57.4]} 3... c6 {[%clk 0:03:00.4]} 4. e3
{[%clk 0:02:56.7]} 4... Nf6 {[%clk 0:02:59.8]} 5. Qc2 {[%clk 0:02:56.4]} 5...
Nbd7 {[%clk 0:02:51.3]} 6. b3 {[%clk 0:02:55.9]} 6... b6 {[%clk 0:02:46.8]} 7.
Nf3 {[%clk 0:02:53.1]} 7... Bb7 {[%clk 0:02:44.1]} 8. Bd3 {[%clk 0:02:53.5]}
8... Rc8 {[%clk 0:02:33.2]} 9. O-O {[%clk 0:02:50.1]} 9... Be7 {[%clk
0:02:07.7]} 10. Bb2 {[%clk 0:02:49.1]} 10... O-O {[%clk 0:02:07.5]} 11. Rad1
{[%clk 0:02:41.3]} 11... c5 {[%clk 0:02:04.5]} 12. Qe2 {[%clk 0:02:37.6]} 12...
cxd4 {[%clk 0:01:58.8]} 13. exd4 {[%clk 0:02:35.9]} 13... dxc4 {[%clk
0:01:45.5]} 14. bxc4 {[%clk 0:02:35.5]} 14... Qc7 {[%clk 0:01:45.1]} 15. Nb5
{[%clk 0:02:24.1]} 15... Qb8 {[%clk 0:01:41.1]} 16. d5 {[%clk 0:02:21.6]} 16...
Nc5 {[%clk 0:01:28.9]} 17. Be5 {[%clk 0:02:13.3]} 17... Qa8 {[%clk 0:01:26.1]}
18. Nc7 {[%clk 0:02:12.6]} 18... Rxc7 {[%clk 0:01:26.2]} 19. Bxc7 {[%clk
0:02:12.8]} 19... Rc8 {[%clk 0:00:32.7]} 20. Bg3 {[%clk 0:02:04.2]} 20... Nxd3
{[%clk 0:00:17.5]} 21. Rxd3 {[%clk 0:02:03.4]} 21... Rxc4 {[%clk 0:00:17.6]} 22.
dxe6 {[%clk 0:02:01.2]} 22... Re4 {[%clk 0:00:16.6]} 23. exf7+ {[%clk
0:02:00.7]} 23... Kf8 {[%clk 0:00:16.8]} 24. Qd1 {[%clk 0:01:45.5]} 24... Ba6
{[%clk 0:00:16.4]} 25. Ng5 {[%clk 0:01:46.1]} 25... Bxd3 {[%clk 0:00:13.4]} 26.
Qxd3 {[%clk 0:01:45.4]} 26... Rg4 {[%clk 0:00:10.9]} 27. Nxh7+ {[%clk
0:01:37.9]} 27... Kxf7 {[%clk 0:00:03.8]} 28. Nxf6 {[%clk 0:01:26.2]} 28... gxf6
{[%clk 0:00:04.7]} 29. Re1 {[%clk 0:01:20.6]} 29... Qc8 {[%clk 0:00:01.2]} 30.
Qh7+ {[%clk 0:01:18.3]} 30... Rg7 {[%clk 0:00:01.2]} 31. Rxe7+ {[%clk
0:01:17.8]} 31... Kxe7 {[%clk 0:00:02.1]} 32. Qxg7+ {[%clk 0:01:17.6]} 1-0

[Event "*** SCC Grand Prix: Titled Tuesday Blitz"]
[Site "Chess.com"]
[Date "2020.06.02"]
[Round "1"]
[White "aNaartjieZA"]
[Black "icychess54"]
[Result "0-1"]
[WhiteElo "2554"]
[BlackElo "2243"]
[TimeControl "180+1"]
[EndTime "10:06:08 PDT"]
[Termination "icychess54 won by checkmate"]

1. e4 {[%clk 0:03:00.9]} 1... c5 {[%clk 0:02:59.3]} 2. Nf3 {[%clk 0:03:01]} 2...
d6 {[%clk 0:02:59.7]} 3. g3 {[%clk 0:03:01.3]} 3... Nf6 {[%clk 0:02:59.4]} 4. d3
{[%clk 0:03:01.4]} 4... Nc6 {[%clk 0:02:59.8]} 5. Bg2 {[%clk 0:03:01.6]} 5... e6
{[%clk 0:03:00.3]} 6. O-O {[%clk 0:03:01.9]} 6... Be7 {[%clk 0:03:00.8]} 7. Re1
{[%clk 0:03:02.1]} 7... O-O {[%clk 0:03:01.3]} 8. Nbd2 {[%clk 0:03:02.6]} 8...
a6 {[%clk 0:03:01.3]} 9. a4 {[%clk 0:03:02.4]} 9... Qc7 {[%clk 0:02:59.1]} 10.
c3 {[%clk 0:03:02.3]} 10... b6 {[%clk 0:02:58.7]} 11. Nf1 {[%clk 0:03:01.8]}
11... Bb7 {[%clk 0:02:58.7]} 12. h3 {[%clk 0:03:01.9]} 12... Rfd8 {[%clk
0:02:50.9]} 13. g4 {[%clk 0:03:01.1]} 13... b5 {[%clk 0:02:47.6]} 14. axb5
{[%clk 0:03:00.1]} 14... axb5 {[%clk 0:02:46.9]} 15. Rxa8 {[%clk 0:03:00.7]}
15... Rxa8 {[%clk 0:02:46.6]} 16. Ng3 {[%clk 0:03:00.8]} 16... b4 {[%clk
0:02:41.1]} 17. d4 {[%clk 0:02:58.9]} 17... bxc3 {[%clk 0:02:09]} 18. bxc3
{[%clk 0:02:59.8]} 18... Na5 {[%clk 0:01:47.8]} 19. Bf4 {[%clk 0:02:46.8]} 19...
Nc4 {[%clk 0:01:26.5]} 20. Qb3 {[%clk 0:02:11.7]} 20... cxd4 {[%clk 0:01:07.6]}
21. cxd4 {[%clk 0:02:12.6]} 21... Ra3 {[%clk 0:01:06.6]} 22. Qb1 {[%clk
0:02:04.6]} 22... e5 {[%clk 0:00:54.5]} 23. Bg5 {[%clk 0:02:00.9]} 23... h6
{[%clk 0:00:30.9]} 24. Bxf6 {[%clk 0:02:00.5]} 24... Bxf6 {[%clk 0:00:31.4]} 25.
Rc1 {[%clk 0:01:59.9]} 25... exd4 {[%clk 0:00:27.7]} 26. Rxc4 {[%clk 0:01:41.3]}
26... Qxc4 {[%clk 0:00:26.3]} 27. Qxb7 {[%clk 0:01:41.1]} 27... d3 {[%clk
0:00:25.7]} 28. Nf5 {[%clk 0:01:32.2]} 28... Qc1+ {[%clk 0:00:23.1]} 29. Kh2
{[%clk 0:01:29.3]} 29... d2 {[%clk 0:00:23.3]} 30. Nxd6 {[%clk 0:01:22.7]} 30...
d1=Q {[%clk 0:00:15.3]} 31. Qxf7+ {[%clk 0:01:22.3]} 31... Kh8 {[%clk
0:00:15.4]} 32. Qe8+ {[%clk 0:01:12.4]} 32... Kh7 {[%clk 0:00:14.9]} 33. Nf7
{[%clk 0:01:12.5]} 33... Qf4# {[%clk 0:00:06.8]} 0-1

[Event "*** SCC Grand Prix: Titled Tuesday Blitz"]
[Site "Chess.com"]
[Date "2020.06.02"]
[Round "1"]
[White "MFBerna"]
[Black "dalmatinac101"]
[Result "0-1"]
[WhiteElo "2426"]
[BlackElo "2866"]
[TimeControl "180+1"]
[EndTime "10:06:09 PDT"]
[Termination "dalmatinac101 won by resignation"]

1. e4 {[%clk 0:02:59.8]} 1... g6 {[%clk 0:02:57.9]} 2. d4 {[%clk 0:02:59.4]}
2... d6 {[%clk 0:02:57.1]} 3. Nc3 {[%clk 0:02:58]} 3... Bg7 {[%clk 0:02:56.8]}
4. Nf3 {[%clk 0:02:58.3]} 4... a6 {[%clk 0:02:56.5]} 5. a4 {[%clk 0:02:57.8]}
5... Nc6 {[%clk 0:02:56.1]} 6. h3 {[%clk 0:02:55.6]} 6... e5 {[%clk 0:02:50.7]}
7. Be3 {[%clk 0:02:55.4]} 7... exd4 {[%clk 0:02:49.9]} 8. Nxd4 {[%clk
0:02:56.3]} 8... Nf6 {[%clk 0:02:49.9]} 9. Qd2 {[%clk 0:02:48.6]} 9... O-O
{[%clk 0:02:45]} 10. Nxc6 {[%clk 0:02:48.2]} 10... bxc6 {[%clk 0:02:44.8]} 11.
Bd3 {[%clk 0:02:48.8]} 11... Rb8 {[%clk 0:02:42.3]} 12. Rb1 {[%clk 0:02:48.3]}
12... d5 {[%clk 0:02:39.9]} 13. Bg5 {[%clk 0:02:35.6]} 13... dxe4 {[%clk
0:02:24.1]} 14. Nxe4 {[%clk 0:02:36.1]} 14... Nxe4 {[%clk 0:02:20.7]} 15. Bxe4
{[%clk 0:02:27.3]} 15... Qe8 {[%clk 0:02:06.6]} 16. Qe2 {[%clk 0:02:09.5]} 16...
Bc3+ {[%clk 0:02:00.2]} 17. Kf1 {[%clk 0:02:07.4]} 17... Rxb2 {[%clk 0:02:00.2]}
18. Rxb2 {[%clk 0:02:07]} 18... Bxb2 {[%clk 0:02:01.1]} 19. Bh6 {[%clk
0:01:57.8]} 19... Bg7 {[%clk 0:01:59.7]} 20. Bxg7 {[%clk 0:01:58.1]} 20... Kxg7
{[%clk 0:02:00.6]} 21. g3 {[%clk 0:01:42.8]} 21... Qe6 {[%clk 0:01:52.1]} 22.
Kg2 {[%clk 0:01:39.4]} 22... Re8 {[%clk 0:01:52]} 23. Re1 {[%clk 0:01:28.3]}
23... Qxh3+ {[%clk 0:01:50.8]} 24. Kg1 {[%clk 0:01:28.8]} 24... f5 {[%clk
0:01:30.3]} 25. Qc4 {[%clk 0:00:55]} 25... Rxe4 {[%clk 0:01:17.7]} 26. Rxe4
{[%clk 0:00:54.3]} 26... fxe4 {[%clk 0:01:18.6]} 27. Qxc6 {[%clk 0:00:47.5]}
27... Qd7 {[%clk 0:00:54.4]} 28. Qxe4 {[%clk 0:00:47.4]} 28... Qd1+ {[%clk
0:00:52.5]} 29. Kg2 {[%clk 0:00:47.3]} 29... Qd6 {[%clk 0:00:53.1]} 30. Qe8
{[%clk 0:00:37.7]} 30... Bd7 {[%clk 0:00:51.6]} 0-1

[Event "*** SCC Grand Prix: Titled Tuesday Blitz"]
[Site "Chess.com"]
[Date "2020.06.02"]
[Round "1"]
[White "Haykoooo0o"]
[Black "AlexandraBotez"]
[Result "1-0"]
[WhiteElo "2550"]
[BlackElo "2199"]
[TimeControl "180+1"]
[EndTime "10:06:09 PDT"]
[Termination "Haykoooo0o won by resignation"]

1. e4 {[%clk 0:02:54.6]} 1... e6 {[%clk 0:02:57.3]} 2. d4 {[%clk 0:02:53.9]}
2... d5 {[%clk 0:02:56.7]} 3. e5 {[%clk 0:02:53.6]} 3... c5 {[%clk 0:02:56.1]}
4. Nf3 {[%clk 0:02:52.1]} 4... Nc6 {[%clk 0:02:48.3]} 5. Bd3 {[%clk 0:02:48.2]}
5... Bd7 {[%clk 0:02:39.2]} 6. O-O {[%clk 0:02:35.3]} 6... cxd4 {[%clk
0:02:34.2]} 7. Re1 {[%clk 0:02:24.9]} 7... Bc5 {[%clk 0:02:31.8]} 8. Nbd2 {[%clk
0:02:10.5]} 8... Nge7 {[%clk 0:02:25]} 9. Nb3 {[%clk 0:01:25.7]} 9... Bb6 {[%clk
0:02:11.3]} 10. a4 {[%clk 0:01:25.2]} 10... a6 {[%clk 0:02:07.9]} 11. Bg5 {[%clk
0:01:21]} 11... h6 {[%clk 0:02:07.1]} 12. Bh4 {[%clk 0:01:19]} 12... Qc7 {[%clk
0:02:00.3]} 13. Qd2 {[%clk 0:01:15.9]} 13... Na5 {[%clk 0:01:55.6]} 14. Nxa5
{[%clk 0:01:12.1]} 14... Bxa5 {[%clk 0:01:55.4]} 15. b4 {[%clk 0:01:12.1]} 15...
Bb6 {[%clk 0:01:55.1]} 16. a5 {[%clk 0:01:09.9]} 16... Ba7 {[%clk 0:01:54.7]}
17. Rac1 {[%clk 0:00:56.9]} 17... Qc3 {[%clk 0:01:42.4]} 18. Qf4 {[%clk
0:00:53.7]} 18... O-O {[%clk 0:01:10.3]} 19. Bxe7 {[%clk 0:00:50.8]} 19... Rfe8
{[%clk 0:01:09.9]} 20. Bf6 {[%clk 0:00:44.1]} 20... gxf6 {[%clk 0:00:58.3]} 21.
Qxh6 {[%clk 0:00:40.5]} 21... f5 {[%clk 0:00:54.2]} 22. Ng5 {[%clk 0:00:40.7]}
1-0

[Event "*** SCC Grand Prix: Titled Tuesday Blitz"]
[Site "Chess.com"]
[Date "2020.06.02"]
[Round "1"]
[White "Matveev_Vladimir"]
[Black "1f3_2g41-0"]
[Result "1-0"]
[WhiteElo "2596"]
[BlackElo "2256"]
[TimeControl "180+1"]
[EndTime "10:06:12 PDT"]
[Termination "Matveev_Vladimir won by resignation"]

1. d4 {[%clk 0:03:00.9]} 1... Nf6 {[%clk 0:02:59.4]} 2. c4 {[%clk 0:03:00.7]}
2... g6 {[%clk 0:02:58.5]} 3. Nc3 {[%clk 0:03:00.7]} 3... d5 {[%clk 0:02:58.1]}
4. cxd5 {[%clk 0:03:01.6]} 4... Nxd5 {[%clk 0:02:58.5]} 5. e4 {[%clk 0:03:02.5]}
5... Nxc3 {[%clk 0:02:57.5]} 6. bxc3 {[%clk 0:03:03.4]} 6... Bg7 {[%clk
0:02:57.6]} 7. Bg5 {[%clk 0:03:03.7]} 7... O-O {[%clk 0:02:56.4]} 8. Rc1 {[%clk
0:03:02.7]} 8... h6 {[%clk 0:02:53.8]} 9. Be3 {[%clk 0:03:01.9]} 9... b6 {[%clk
0:02:51.4]} 10. Qd2 {[%clk 0:03:01.7]} 10... Bb7 {[%clk 0:02:49.5]} 11. Bxh6
{[%clk 0:02:58.1]} 11... Bxe4 {[%clk 0:02:45.2]} 12. h4 {[%clk 0:02:53.4]} 12...
Qd5 {[%clk 0:02:33.3]} 13. f3 {[%clk 0:02:44.3]} 13... Bf5 {[%clk 0:02:31.2]}
14. h5 {[%clk 0:02:42.6]} 14... Qe6+ {[%clk 0:01:50.9]} 15. Kf2 {[%clk
0:02:41.8]} 15... gxh5 {[%clk 0:01:43]} 16. Bxg7 {[%clk 0:02:21.6]} 16... Kxg7
{[%clk 0:01:33.4]} 17. Rxh5 {[%clk 0:02:21.9]} 17... Rh8 {[%clk 0:01:27.4]} 18.
Bc4 {[%clk 0:02:01.4]} 18... Qf6 {[%clk 0:01:07.2]} 19. Rxh8 {[%clk 0:01:54.8]}
19... Kxh8 {[%clk 0:01:06.9]} 20. Ne2 {[%clk 0:01:55.2]} 20... Nc6 {[%clk
0:01:04.7]} 21. Rh1+ {[%clk 0:01:54.7]} 21... Kg7 {[%clk 0:01:04.9]} 22. Ng3
{[%clk 0:01:39.2]} 22... Bg6 {[%clk 0:00:25.2]} 23. Qh6+ {[%clk 0:01:00.1]}
23... Kg8 {[%clk 0:00:23.9]} 24. Bd5 {[%clk 0:01:00.6]} 24... Ne5 {[%clk
0:00:04.2]} 25. dxe5 {[%clk 0:00:53]} 25... Qxe5 {[%clk 0:00:04.3]} 26. Qxg6+
{[%clk 0:00:52.6]} 1-0

[Event "*** SCC Grand Prix: Titled Tuesday Blitz"]
[Site "Chess.com"]
[Date "2020.06.02"]
[Round "1"]
[White "Oligan22"]
[Black "Radzio1987"]
[Result "0-1"]
[WhiteElo "2436"]
[BlackElo "2914"]
[TimeControl "180+1"]
[EndTime "10:06:13 PDT"]
[Termination "Radzio1987 won by resignation"]

1. e4 {[%clk 0:03:00.9]} 1... c6 {[%clk 0:02:59.4]} 2. d4 {[%clk 0:02:59.5]}
2... d5 {[%clk 0:03:00.3]} 3. exd5 {[%clk 0:03:00.4]} 3... cxd5 {[%clk
0:03:00.3]} 4. Bd3 {[%clk 0:03:00.3]} 4... Nc6 {[%clk 0:03:00.6]} 5. c3 {[%clk
0:02:59.4]} 5... e6 {[%clk 0:03:01.2]} 6. Bf4 {[%clk 0:02:56.9]} 6... Bd6 {[%clk
0:03:01.7]} 7. Bxd6 {[%clk 0:02:40.8]} 7... Qxd6 {[%clk 0:03:02.6]} 8. Nf3
{[%clk 0:02:37.5]} 8... Nge7 {[%clk 0:03:02.3]} 9. Nbd2 {[%clk 0:02:35.3]} 9...
O-O {[%clk 0:03:01.8]} 10. O-O {[%clk 0:02:33.7]} 10... Bd7 {[%clk 0:03:01.7]}
11. Re1 {[%clk 0:02:26.5]} 11... f6 {[%clk 0:03:00.8]} 12. Qc2 {[%clk
0:02:07.7]} 12... h6 {[%clk 0:03:00]} 13. Rad1 {[%clk 0:01:54]} 13... Rac8
{[%clk 0:02:58.8]} 14. Qb1 {[%clk 0:01:49.5]} 14... Be8 {[%clk 0:02:57.9]} 15.
Nb3 {[%clk 0:01:42]} 15... Bh5 {[%clk 0:02:52.9]} 16. Be2 {[%clk 0:01:36.3]}
16... b6 {[%clk 0:02:39.9]} 17. Nfd2 {[%clk 0:01:34.3]} 17... Bf7 {[%clk
0:02:20.7]} 18. Bd3 {[%clk 0:01:32.5]} 18... Rce8 {[%clk 0:02:16.9]} 19. Re3
{[%clk 0:01:31.2]} 19... e5 {[%clk 0:02:15.5]} 20. dxe5 {[%clk 0:01:30]} 20...
fxe5 {[%clk 0:02:16.4]} 21. Bc2 {[%clk 0:00:58.1]} 21... Qc7 {[%clk 0:01:49.3]}
22. Rde1 {[%clk 0:00:51.4]} 22... Kh8 {[%clk 0:01:41.3]} 23. Nf3 {[%clk
0:00:50]} 23... e4 {[%clk 0:01:40.6]} 24. Nfd4 {[%clk 0:00:40.3]} 24... Ne5
{[%clk 0:01:40.6]} 25. h3 {[%clk 0:00:37.9]} 25... Nc4 {[%clk 0:01:33.8]} 26.
R3e2 {[%clk 0:00:37.7]} 26... Qf4 {[%clk 0:01:29.8]} 27. Nc1 {[%clk 0:00:17.9]}
27... Qf6 {[%clk 0:01:18.8]} 28. b3 {[%clk 0:00:17.5]} 28... Nd6 {[%clk
0:01:19]} 29. Qb2 {[%clk 0:00:17.2]} 29... Bh5 {[%clk 0:01:16.7]} 30. Re3 {[%clk
0:00:17.2]} 30... Qxf2+ {[%clk 0:01:15.7]} 31. Kh1 {[%clk 0:00:16.4]} 31... Nef5
{[%clk 0:01:13.1]} 32. Nxf5 {[%clk 0:00:14.9]} 32... Nxf5 {[%clk 0:01:14]} 33.
Nd3 {[%clk 0:00:12.8]} 33... exd3 {[%clk 0:01:10.5]} 34. Rxe8 {[%clk 0:00:12.1]}
34... Bxe8 {[%clk 0:01:07.4]} 0-1

[Event "*** SCC Grand Prix: Titled Tuesday Blitz"]
[Site "Chess.com"]
[Date "2020.06.02"]
[Round "1"]
[White "RobertPrieb2007"]
[Black "KejJaj"]
[Result "1-0"]
[WhiteElo "2490"]
[BlackElo "2037"]
[TimeControl "180+1"]
[EndTime "10:06:15 PDT"]
[Termination "RobertPrieb2007 won by resignation"]

1. d4 {[%clk 0:03:00.9]} 1... f5 {[%clk 0:02:58.8]} 2. g4 {[%clk 0:03:00.1]}
2... fxg4 {[%clk 0:02:55.2]} 3. h3 {[%clk 0:03:00.4]} 3... g3 {[%clk 0:02:55.1]}
4. fxg3 {[%clk 0:02:59.6]} 4... Nf6 {[%clk 0:02:52.4]} 5. Nc3 {[%clk 0:02:56.5]}
5... d5 {[%clk 0:02:51.8]} 6. Nf3 {[%clk 0:02:56]} 6... e6 {[%clk 0:02:47.4]} 7.
e4 {[%clk 0:02:52.8]} 7... dxe4 {[%clk 0:02:45.9]} 8. Ne5 {[%clk 0:02:52.6]}
8... Bb4 {[%clk 0:02:37.4]} 9. Bc4 {[%clk 0:02:51.1]} 9... O-O {[%clk
0:02:34.1]} 10. O-O {[%clk 0:02:47.8]} 10... c5 {[%clk 0:02:22.1]} 11. Be3
{[%clk 0:02:44.3]} 11... cxd4 {[%clk 0:02:17.6]} 12. Bxd4 {[%clk 0:02:45.2]}
12... Nc6 {[%clk 0:02:16]} 13. Nxc6 {[%clk 0:02:41]} 13... bxc6 {[%clk 0:02:15]}
14. Bxf6 {[%clk 0:02:40.8]} 14... Qxd1 {[%clk 0:02:08.9]} 15. Raxd1 {[%clk
0:02:41.7]} 15... gxf6 {[%clk 0:02:06.2]} 16. Nxe4 {[%clk 0:02:38.9]} 16... Kg7
{[%clk 0:02:02.4]} 17. a3 {[%clk 0:02:36]} 17... Be7 {[%clk 0:01:59.7]} 18. Nd6
{[%clk 0:02:35.5]} 18... a5 {[%clk 0:01:53.1]} 19. Nxc8 {[%clk 0:02:32.9]} 19...
Raxc8 {[%clk 0:01:50.7]} 20. Bxe6 {[%clk 0:02:31.2]} 20... Rcd8 {[%clk
0:01:47.4]} 21. Bf5 {[%clk 0:02:25.1]} 21... Bd6 {[%clk 0:01:34.1]} 22. g4
{[%clk 0:02:21.4]} 22... Be5 {[%clk 0:01:28.4]} 23. c3 {[%clk 0:02:21.2]} 23...
h6 {[%clk 0:01:16.7]} 24. Kf2 {[%clk 0:02:17.1]} 24... a4 {[%clk 0:01:05.8]} 25.
Ke2 {[%clk 0:02:12.1]} 25... Rb8 {[%clk 0:01:05]} 26. Rd2 {[%clk 0:02:04.6]}
26... Rfd8 {[%clk 0:01:03]} 27. Rfd1 {[%clk 0:02:01.4]} 27... Rxd2+ {[%clk
0:00:59]} 28. Rxd2 {[%clk 0:02:02.3]} 28... Kf8 {[%clk 0:00:52.7]} 29. Bd7
{[%clk 0:01:59.5]} 29... c5 {[%clk 0:00:50.2]} 30. Bxa4 {[%clk 0:01:57]} 30...
Kg7 {[%clk 0:00:39.1]} 31. Kf3 {[%clk 0:01:52.6]} 31... Kg6 {[%clk 0:00:38.8]}
32. Ke4 {[%clk 0:01:46.4]} 32... Kg5 {[%clk 0:00:38.5]} 33. Bd7 {[%clk
0:01:43.4]} 33... Rd8 {[%clk 0:00:36.8]} 34. Rd5 {[%clk 0:01:39.4]} 34... Kh4
{[%clk 0:00:35.8]} 35. a4 {[%clk 0:01:35.5]} 35... Kxh3 {[%clk 0:00:34.7]} 36.
g5+ {[%clk 0:01:33.6]} 36... Kh4 {[%clk 0:00:32.8]} 37. g6 {[%clk 0:01:31.3]}
37... Rg8 {[%clk 0:00:30.8]} 38. Kf5 {[%clk 0:01:31.3]} 38... h5 {[%clk
0:00:29]} 39. a5 {[%clk 0:01:28.1]} 39... Kg3 {[%clk 0:00:28.6]} 40. a6 {[%clk
0:01:26.1]} 40... h4 {[%clk 0:00:29.5]} 41. a7 {[%clk 0:01:25.6]} 41... h3
{[%clk 0:00:29.3]} 42. Bc6 {[%clk 0:01:19.2]} 42... h2 {[%clk 0:00:26.2]} 43.
a8=Q {[%clk 0:01:18.3]} 43... Rxa8 {[%clk 0:00:24.8]} 44. Bxa8 {[%clk
0:01:18.7]} 44... h1=Q {[%clk 0:00:24.4]} 45. Rd3+ {[%clk 0:01:18.7]} 1-0

[Event "*** SCC Grand Prix: Titled Tuesday Blitz"]
[Site "Chess.com"]
[Date "2020.06.02"]
[Round "1"]
[White "Kolle05"]
[Black "Gordima"]
[Result "0-1"]
[WhiteElo "2393"]
[BlackElo "2773"]
[TimeControl "180+1"]
[EndTime "10:06:16 PDT"]
[Termination "Gordima won on time"]

1. e4 {[%clk 0:02:59.7]} 1... Nf6 {[%clk 0:02:56.1]} 2. e5 {[%clk 0:02:59.2]}
2... Nd5 {[%clk 0:02:56.6]} 3. d4 {[%clk 0:02:59.9]} 3... d6 {[%clk 0:02:57]} 4.
Nf3 {[%clk 0:03:00.5]} 4... Bg4 {[%clk 0:02:55.4]} 5. Be2 {[%clk 0:03:00]} 5...
e6 {[%clk 0:02:55.4]} 6. O-O {[%clk 0:02:59.1]} 6... Be7 {[%clk 0:02:55.6]} 7.
c4 {[%clk 0:02:57.1]} 7... Nb6 {[%clk 0:02:55.4]} 8. Nc3 {[%clk 0:02:57]} 8...
O-O {[%clk 0:02:55.3]} 9. b3 {[%clk 0:02:51.4]} 9... Nc6 {[%clk 0:02:51.3]} 10.
exd6 {[%clk 0:02:50.8]} 10... cxd6 {[%clk 0:02:51.2]} 11. Be3 {[%clk 0:02:28.3]}
11... d5 {[%clk 0:02:48.3]} 12. cxd5 {[%clk 0:02:15.4]} 12... Nxd5 {[%clk
0:02:48.1]} 13. Nxd5 {[%clk 0:02:15.3]} 13... Qxd5 {[%clk 0:02:49]} 14. Bc4
{[%clk 0:02:09.5]} 14... Qh5 {[%clk 0:02:47.8]} 15. h3 {[%clk 0:01:48.5]} 15...
Bxf3 {[%clk 0:02:45]} 16. Qxf3 {[%clk 0:01:49.4]} 16... Qxf3 {[%clk 0:02:45.3]}
17. gxf3 {[%clk 0:01:50.3]} 17... Rfd8 {[%clk 0:02:33.5]} 18. Rfd1 {[%clk
0:01:48.5]} 18... Nb4 {[%clk 0:02:33.6]} 19. a3 {[%clk 0:01:36]} 19... Nc2
{[%clk 0:02:15.7]} 20. Ra2 {[%clk 0:01:31.6]} 20... Nxa3 {[%clk 0:02:13.5]} 21.
Bd3 {[%clk 0:01:23]} 21... b5 {[%clk 0:01:49.4]} 22. Be4 {[%clk 0:00:55.1]}
22... Rac8 {[%clk 0:01:45.3]} 23. d5 {[%clk 0:00:49.6]} 23... f5 {[%clk
0:01:38.4]} 24. d6 {[%clk 0:00:14.5]} 24... Bxd6 {[%clk 0:01:36.9]} 25. Bb7
{[%clk 0:00:12]} 25... Rc7 {[%clk 0:01:35.3]} 26. Ba6 {[%clk 0:00:05.8]} 26...
b4 {[%clk 0:01:30.6]} 27. Kg2 {[%clk 0:00:05.5]} 27... Be7 {[%clk 0:01:16.1]}
28. Rxd8+ {[%clk 0:00:04.3]} 28... Bxd8 {[%clk 0:01:17]} 29. Rd2 {[%clk
0:00:04.4]} 29... Bf6 {[%clk 0:01:11]} 30. Bf4 {[%clk 0:00:03]} 30... e5 {[%clk
0:01:07.6]} 31. Be3 {[%clk 0:00:02]} 31... f4 {[%clk 0:01:06.9]} 0-1